{"text_format":"3","workbook":"xlsx","n_sheets":2,"sheets":["Base","Assocs"],"not_rendered":{"macros":1},"read":"whole","date_system":"1900"}

{"sheet":"Base","index":0,"n_rows":36,"n_cols":42,"rows_kept":36}
["Cultures","Ail","Aubergine","Artichaut","Basilic","Bette","Betteraves","Carottes","Celeri","Choux","Concombres","Cornichons","Courges","Cresson","Echalottes","Epinards","Feves","Fraisier","Framboisier","Haricots","Laitue","Mâche","Melon","Navet","Œillet D'Inde","Oignon","Pêcher","Persil","Pois","Pdt","Poivron","Poireaux","Radis","Souci","Tomates","Tournesol",null,"+","-","neutre","Bonne association","Mauvaise association"]
["Ail",{"$nulls":5},"+","+",null,"+",{"$nulls":6},"-","+",null,"-","+",{"$nulls":5},"+",null,"-","+",null,"-",null,null,"+",null,null,{"$f":"COUNTIF(T_assoc[[#This Row],[Ail]:[Tournesol]],$AL$1)","v":8},{"$f":"COUNTIF(T_assoc[[#This Row],[Ail]:[Tournesol]],$AM$1)","v":4},{"$f":"COUNTIF(T_assoc[[#This Row],[Ail]:[Tournesol]],\"\")","v":23},{"$f":"assoc($A2,T_assoc[[#Headers],[Ail]:[Tournesol]],\"+\")","v":""},{"$f":"assoc($A2,T_assoc[[#Headers],[Ail]:[Tournesol]],\"-\")","v":""}]
["Aubergine",{"$nulls":18},"+",{"$nulls":4},"+",{"$nulls":4},"-","+",{"$nulls":6},{"$f":"COUNTIF(T_assoc[[#This Row],[Ail]:[Tournesol]],$AL$1)","v":3},{"$f":"COUNTIF(T_assoc[[#This Row],[Ail]:[Tournesol]],$AM$1)","v":1},{"$f":"COUNTIF(T_assoc[[#This Row],[Ail]:[Tournesol]],\"\")","v":31},{"$f":"assoc($A3,T_assoc[[#Headers],[Ail]:[Tournesol]],\"+\")","v":""},{"$f":"assoc($A3,T_assoc[[#Headers],[Ail]:[Tournesol]],\"-\")","v":""}]
["Artichaut",{"$nulls":15},"+",{"$nulls":20},{"$f":"COUNTIF(T_assoc[[#This Row],[Ail]:[Tournesol]],$AL$1)","v":1},{"$f":"COUNTIF(T_assoc[[#This Row],[Ail]:[Tournesol]],$AM$1)","v":0},{"$f":"COUNTIF(T_assoc[[#This Row],[Ail]:[Tournesol]],\"\")","v":34},{"$f":"assoc($A4,T_assoc[[#Headers],[Ail]:[Tournesol]],\"+\")","v":""},{"$f":"assoc($A4,T_assoc[[#Headers],[Ail]:[Tournesol]],\"-\")","v":""}]
["Basilic",{"$nulls":33},"+",null,null,{"$f":"COUNTIF(T_assoc[[#This Row],[Ail]:[Tournesol]],$AL$1)","v":1},{"$f":"COUNTIF(T_assoc[[#This Row],[Ail]:[Tournesol]],$AM$1)","v":0},{"$f":"COUNTIF(T_assoc[[#This Row],[Ail]:[Tournesol]],\"\")","v":34},{"$f":"assoc($A5,T_assoc[[#Headers],[Ail]:[Tournesol]],\"+\")","v":""},{"$f":"assoc($A5,T_assoc[[#Headers],[Ail]:[Tournesol]],\"-\")","v":""}]
["Bette",{"$nulls":6},"-","+","+",{"$nulls":4},"+","+",{"$nulls":4},"+",{"$nulls":4},"+",{"$nulls":3},"-",null,"-","+",null,"-",null,null,{"$f":"COUNTIF(T_assoc[[#This Row],[Ail]:[Tournesol]],$AL$1)","v":7},{"$f":"COUNTIF(T_assoc[[#This Row],[Ail]:[Tournesol]],$AM$1)","v":4},{"$f":"COUNTIF(T_assoc[[#This Row],[Ail]:[Tournesol]],\"\")","v":24},{"$f":"assoc($A6,T_assoc[[#Headers],[Ail]:[Tournesol]],\"+\")","v":""},{"$f":"assoc($A6,T_assoc[[#Headers],[Ail]:[Tournesol]],\"-\")","v":""}]
["Betteraves","+",{"$nulls":5},"-","+","+",{"$nulls":4},"+","+",{"$nulls":3},"-","+",{"$nulls":4},"+",{"$nulls":3},"-",null,"-","+",null,"-",null,null,{"$f":"COUNTIF(T_assoc[[#This Row],[Ail]:[Tournesol]],$AL$1)","v":8},{"$f":"COUNTIF(T_assoc[[#This Row],[Ail]:[Tournesol]],$AM$1)","v":5},{"$f":"COUNTIF(T_assoc[[#This Row],[Ail]:[Tournesol]],\"\")","v":22},{"$f":"assoc($A7,T_assoc[[#Headers],[Ail]:[Tournesol]],\"+\")","v":""},{"$f":"assoc($A7,T_assoc[[#Headers],[Ail]:[Tournesol]],\"-\")","v":""}]
["Carottes","+",{"$nulls":3},"-","-",null,"+","+",{"$nulls":4},"+","+","+",null,null,"+","+",{"$nulls":4},"+",null,null,"+","-",null,"+","+",null,"+",null,null,{"$f":"COUNTIF(T_assoc[[#This Row],[Ail]:[Tournesol]],$AL$1)","v":13},{"$f":"COUNTIF(T_assoc[[#This Row],[Ail]:[Tournesol]],$AM$1)","v":3},{"$f":"COUNTIF(T_assoc[[#This Row],[Ail]:[Tournesol]],\"\")","v":19},{"$f":"assoc($A8,T_assoc[[#Headers],[Ail]:[Tournesol]],\"+\")","v":""},{"$f":"assoc($A8,T_assoc[[#Headers],[Ail]:[Tournesol]],\"-\")","v":""}]
["Celeri",{"$nulls":4},"+","+","+",null,"+",{"$nulls":6},"+",null,null,"+","-","+",{"$nulls":5},"-","+","-",null,"+","+",{"$nulls":4},{"$f":"COUNTIF(T_assoc[[#This Row],[Ail]:[Tournesol]],$AL$1)","v":10},{"$f":"COUNTIF(T_assoc[[#This Row],[Ail]:[Tournesol]],$AM$1)","v":3},{"$f":"COUNTIF(T_assoc[[#This Row],[Ail]:[Tournesol]],\"\")","v":22},{"$f":"assoc($A9,T_assoc[[#Headers],[Ail]:[Tournesol]],\"+\")","v":""},{"$f":"assoc($A9,T_assoc[[#Headers],[Ail]:[Tournesol]],\"-\")","v":""}]
["Choux","+",{"$nulls":3},"+","+","+","+",null,"+","+",null,null,"-","+","+","-",null,"+","+","+",{"$nulls":3},"-",null,null,"+","+",null,"-","-","-","-",null,null,{"$f":"COUNTIF(T_assoc[[#This Row],[Ail]:[Tournesol]],$AL$1)","v":14},{"$f":"COUNTIF(T_assoc[[#This Row],[Ail]:[Tournesol]],$AM$1)","v":7},{"$f":"COUNTIF(T_assoc[[#This Row],[Ail]:[Tournesol]],\"\")","v":14},{"$f":"assoc($A10,T_assoc[[#Headers],[Ail]:[Tournesol]],\"+\")","v":""},{"$f":"assoc($A10,T_assoc[[#Headers],[Ail]:[Tournesol]],\"-\")","v":""}]
["Concombres",{"$nulls":8},"+",{"$nulls":6},"+",null,null,"+","+",null,"-",null,null,"+",{"$nulls":3},"-",null,null,"-",null,"-","+",null,{"$f":"COUNTIF(T_assoc[[#This Row],[Ail]:[Tournesol]],$AL$1)","v":6},{"$f":"COUNTIF(T_assoc[[#This Row],[Ail]:[Tournesol]],$AM$1)","v":4},{"$f":"COUNTIF(T_assoc[[#This Row],[Ail]:[Tournesol]],\"\")","v":25},{"$f":"assoc($A11,T_assoc[[#Headers],[Ail]:[Tournesol]],\"+\")","v":""},{"$f":"assoc($A11,T_assoc[[#Headers],[Ail]:[Tournesol]],\"-\")","v":""}]
["Cornichons",{"$nulls":8},"+",{"$nulls":6},"+",null,null,"+","+",null,"-",null,null,"+",null,null,"+","-",null,null,"-",null,"-",null,null,{"$f":"COUNTIF(T_assoc[[#This Row],[Ail]:[Tournesol]],$AL$1)","v":6},{"$f":"COUNTIF(T_assoc[[#This Row],[Ail]:[Tournesol]],$AM$1)","v":4},{"$f":"COUNTIF(T_assoc[[#This Row],[Ail]:[Tournesol]],\"\")","v":25},{"$f":"assoc($A12,T_assoc[[#Headers],[Ail]:[Tournesol]],\"+\")","v":""},{"$f":"assoc($A12,T_assoc[[#Headers],[Ail]:[Tournesol]],\"-\")","v":""}]
["Courges",{"$nulls":15},"+",null,null,"+",null,null,"-",{"$nulls":6},"-",null,null,"-",null,"-",null,null,{"$f":"COUNTIF(T_assoc[[#This Row],[Ail]:[Tournesol]],$AL$1)","v":2},{"$f":"COUNTIF(T_assoc[[#This Row],[Ail]:[Tournesol]],$AM$1)","v":4},{"$f":"COUNTIF(T_assoc[[#This Row],[Ail]:[Tournesol]],\"\")","v":29},{"$f":"assoc($A13,T_assoc[[#Headers],[Ail]:[Tournesol]],\"+\")","v":""},{"$f":"assoc($A13,T_assoc[[#Headers],[Ail]:[Tournesol]],\"-\")","v":""}]
["Cresson",{"$nulls":31},"+",{"$nulls":4},{"$f":"COUNTIF(T_assoc[[#This Row],[Ail]:[Tournesol]],$AL$1)","v":1},{"$f":"COUNTIF(T_assoc[[#This Row],[Ail]:[Tournesol]],$AM$1)","v":0},{"$f":"COUNTIF(T_assoc[[#This Row],[Ail]:[Tournesol]],\"\")","v":34},{"$f":"assoc($A14,T_assoc[[#Headers],[Ail]:[Tournesol]],\"+\")","v":""},{"$f":"assoc($A14,T_assoc[[#Headers],[Ail]:[Tournesol]],\"-\")","v":""}]
["Echalottes",{"$nulls":4},"+","+","+",null,"-",{"$nulls":6},"-","+",null,"-","+",{"$nulls":4},"+",null,null,"-","+",{"$nulls":4},"+",null,null,{"$f":"COUNTIF(T_assoc[[#This Row],[Ail]:[Tournesol]],$AL$1)","v":8},{"$f":"COUNTIF(T_assoc[[#This Row],[Ail]:[Tournesol]],$AM$1)","v":4},{"$f":"COUNTIF(T_assoc[[#This Row],[Ail]:[Tournesol]],\"\")","v":23},{"$f":"assoc($A15,T_assoc[[#Headers],[Ail]:[Tournesol]],\"+\")","v":""},{"$f":"assoc($A15,T_assoc[[#Headers],[Ail]:[Tournesol]],\"-\")","v":""}]
["Epinards",{"$nulls":4},"+","+","+",null,"+",{"$nulls":6},"+","+",null,"+","+",null,"+","+",{"$nulls":7},"+","+",null,"+",null,null,{"$f":"COUNTIF(T_assoc[[#This Row],[Ail]:[Tournesol]],$AL$1)","v":13},{"$f":"COUNTIF(T_assoc[[#This Row],[Ail]:[Tournesol]],$AM$1)","v":0},{"$f":"COUNTIF(T_assoc[[#This Row],[Ail]:[Tournesol]],\"\")","v":22},{"$f":"assoc($A16,T_assoc[[#Headers],[Ail]:[Tournesol]],\"+\")","v":""},{"$f":"assoc($A16,T_assoc[[#Headers],[Ail]:[Tournesol]],\"-\")","v":""}]
["Feves","-",null,"+",{"$nulls":3},"+","+","+","+","+","+",null,"-","+",{"$nulls":3},"+","+",null,"+",null,null,"-",null,null,"-","+",null,"-","+",{"$nulls":4},{"$f":"COUNTIF(T_assoc[[#This Row],[Ail]:[Tournesol]],$AL$1)","v":13},{"$f":"COUNTIF(T_assoc[[#This Row],[Ail]:[Tournesol]],$AM$1)","v":5},{"$f":"COUNTIF(T_assoc[[#This Row],[Ail]:[Tournesol]],\"\")","v":17},{"$f":"assoc($A17,T_assoc[[#Headers],[Ail]:[Tournesol]],\"+\")","v":""},{"$f":"assoc($A17,T_assoc[[#Headers],[Ail]:[Tournesol]],\"-\")","v":""}]
["Fraisier","+",{"$nulls":7},"-",{"$nulls":4},"+","+",{"$nulls":3},"+","+","+",{"$nulls":3},"+",{"$nulls":5},"+",{"$nulls":5},{"$f":"COUNTIF(T_assoc[[#This Row],[Ail]:[Tournesol]],$AL$1)","v":8},{"$f":"COUNTIF(T_assoc[[#This Row],[Ail]:[Tournesol]],$AM$1)","v":1},{"$f":"COUNTIF(T_assoc[[#This Row],[Ail]:[Tournesol]],\"\")","v":26},{"$f":"assoc($A18,T_assoc[[#Headers],[Ail]:[Tournesol]],\"+\")","v":""},{"$f":"assoc($A18,T_assoc[[#Headers],[Ail]:[Tournesol]],\"-\")","v":""}]
["Framboisier",{"$nulls":28},"-",{"$nulls":7},{"$f":"COUNTIF(T_assoc[[#This Row],[Ail]:[Tournesol]],$AL$1)","v":0},{"$f":"COUNTIF(T_assoc[[#This Row],[Ail]:[Tournesol]],$AM$1)","v":1},{"$f":"COUNTIF(T_assoc[[#This Row],[Ail]:[Tournesol]],\"\")","v":34},{"$f":"assoc($A19,T_assoc[[#Headers],[Ail]:[Tournesol]],\"+\")","v":""},{"$f":"assoc($A19,T_assoc[[#Headers],[Ail]:[Tournesol]],\"-\")","v":""}]
["Haricots","-","+",{"$nulls":3},"-","+","+","+","+","+","+",null,"-","+","+","+",null,null,"+","+","+","+",null,"-",null,null,"-","+",null,"-","+",null,"-",null,null,{"$f":"COUNTIF(T_assoc[[#This Row],[Ail]:[Tournesol]],$AL$1)","v":16},{"$f":"COUNTIF(T_assoc[[#This Row],[Ail]:[Tournesol]],$AM$1)","v":7},{"$f":"COUNTIF(T_assoc[[#This Row],[Ail]:[Tournesol]],\"\")","v":12},{"$f":"assoc($A20,T_assoc[[#Headers],[Ail]:[Tournesol]],\"+\")","v":""},{"$f":"assoc($A20,T_assoc[[#Headers],[Ail]:[Tournesol]],\"-\")","v":""}]
["Laitue","+",{"$nulls":3},"+","+","+","-","+","+","+",null,null,"+","+","+","+",null,"+",null,"+","+","+",null,"+",null,"-","+",null,null,"+","+",null,null,"-",null,{"$f":"COUNTIF(T_assoc[[#This Row],[Ail]:[Tournesol]],$AL$1)","v":19},{"$f":"COUNTIF(T_assoc[[#This Row],[Ail]:[Tournesol]],$AM$1)","v":3},{"$f":"COUNTIF(T_assoc[[#This Row],[Ail]:[Tournesol]],\"\")","v":13},{"$f":"assoc($A21,T_assoc[[#Headers],[Ail]:[Tournesol]],\"+\")","v":""},{"$f":"assoc($A21,T_assoc[[#Headers],[Ail]:[Tournesol]],\"-\")","v":""}]
["Mâche",{"$nulls":7},"+","+",{"$nulls":7},"+",null,"+","+",{"$nulls":4},"+",{"$nulls":11},{"$f":"COUNTIF(T_assoc[[#This Row],[Ail]:[Tournesol]],$AL$1)","v":6},{"$f":"COUNTIF(T_assoc[[#This Row],[Ail]:[Tournesol]],$AM$1)","v":0},{"$f":"COUNTIF(T_assoc[[#This Row],[Ail]:[Tournesol]],\"\")","v":29},{"$f":"assoc($A22,T_assoc[[#Headers],[Ail]:[Tournesol]],\"+\")","v":""},{"$f":"assoc($A22,T_assoc[[#Headers],[Ail]:[Tournesol]],\"-\")","v":""}]
["Melon",{"$nulls":9},"-","-","-",null,null,"+","+",null,null,"+","+",{"$nulls":7},"+","-",{"$nulls":7},{"$f":"COUNTIF(T_assoc[[#This Row],[Ail]:[Tournesol]],$AL$1)","v":5},{"$f":"COUNTIF(T_assoc[[#This Row],[Ail]:[Tournesol]],$AM$1)","v":4},{"$f":"COUNTIF(T_assoc[[#This Row],[Ail]:[Tournesol]],\"\")","v":26},{"$f":"assoc($A23,T_assoc[[#Headers],[Ail]:[Tournesol]],\"+\")","v":""},{"$f":"assoc($A23,T_assoc[[#Headers],[Ail]:[Tournesol]],\"-\")","v":""}]
["Navet",{"$nulls":14},"+",{"$nulls":3},"+","+",{"$nulls":4},"-",null,null,"+",{"$nulls":8},{"$f":"COUNTIF(T_assoc[[#This Row],[Ail]:[Tournesol]],$AL$1)","v":4},{"$f":"COUNTIF(T_assoc[[#This Row],[Ail]:[Tournesol]],$AM$1)","v":1},{"$f":"COUNTIF(T_assoc[[#This Row],[Ail]:[Tournesol]],\"\")","v":30},{"$f":"assoc($A24,T_assoc[[#Headers],[Ail]:[Tournesol]],\"+\")","v":""},{"$f":"assoc($A24,T_assoc[[#Headers],[Ail]:[Tournesol]],\"-\")","v":""}]
["Œillet D'Inde",null,"+",{"$nulls":31},"+",null,null,{"$f":"COUNTIF(T_assoc[[#This Row],[Ail]:[Tournesol]],$AL$1)","v":2},{"$f":"COUNTIF(T_assoc[[#This Row],[Ail]:[Tournesol]],$AM$1)","v":0},{"$f":"COUNTIF(T_assoc[[#This Row],[Ail]:[Tournesol]],\"\")","v":33},{"$f":"assoc($A25,T_assoc[[#Headers],[Ail]:[Tournesol]],\"+\")","v":""},{"$f":"assoc($A25,T_assoc[[#Headers],[Ail]:[Tournesol]],\"-\")","v":""}]
["Oignon",{"$nulls":4},"+","+","+",null,"-","+","+",null,null,"+",null,"-","+",null,"-","+","+",null,"-",{"$nulls":4},"-","-",null,"-",null,null,"+",null,null,{"$f":"COUNTIF(T_assoc[[#This Row],[Ail]:[Tournesol]],$AL$1)","v":10},{"$f":"COUNTIF(T_assoc[[#This Row],[Ail]:[Tournesol]],$AM$1)","v":7},{"$f":"COUNTIF(T_assoc[[#This Row],[Ail]:[Tournesol]],\"\")","v":18},{"$f":"assoc($A26,T_assoc[[#Headers],[Ail]:[Tournesol]],\"+\")","v":""},{"$f":"assoc($A26,T_assoc[[#Headers],[Ail]:[Tournesol]],\"-\")","v":""}]
["Pêcher","+",{"$nulls":35},{"$f":"COUNTIF(T_assoc[[#This Row],[Ail]:[Tournesol]],$AL$1)","v":1},{"$f":"COUNTIF(T_assoc[[#This Row],[Ail]:[Tournesol]],$AM$1)","v":0},{"$f":"COUNTIF(T_assoc[[#This Row],[Ail]:[Tournesol]],\"\")","v":34},{"$f":"assoc($A27,T_assoc[[#Headers],[Ail]:[Tournesol]],\"+\")","v":""},{"$f":"assoc($A27,T_assoc[[#Headers],[Ail]:[Tournesol]],\"-\")","v":""}]
["Persil",{"$nulls":7},"-",{"$nulls":11},"-",{"$nulls":7},"-",null,null,"-","+",null,"+",null,null,{"$f":"COUNTIF(T_assoc[[#This Row],[Ail]:[Tournesol]],$AL$1)","v":2},{"$f":"COUNTIF(T_assoc[[#This Row],[Ail]:[Tournesol]],$AM$1)","v":4},{"$f":"COUNTIF(T_assoc[[#This Row],[Ail]:[Tournesol]],\"\")","v":29},{"$f":"assoc($A28,T_assoc[[#Headers],[Ail]:[Tournesol]],\"+\")","v":""},{"$f":"assoc($A28,T_assoc[[#Headers],[Ail]:[Tournesol]],\"-\")","v":""}]
["Pois","-",{"$nulls":5},"+","+","+",null,"+",null,null,"-",null,"-",null,null,"-","+",null,"+","+",null,"-",null,"-",null,"+",null,"-","+",null,"-",null,null,{"$f":"COUNTIF(T_assoc[[#This Row],[Ail]:[Tournesol]],$AL$1)","v":9},{"$f":"COUNTIF(T_assoc[[#This Row],[Ail]:[Tournesol]],$AM$1)","v":8},{"$f":"COUNTIF(T_assoc[[#This Row],[Ail]:[Tournesol]],\"\")","v":18},{"$f":"assoc($A29,T_assoc[[#Headers],[Ail]:[Tournesol]],\"+\")","v":""},{"$f":"assoc($A29,T_assoc[[#Headers],[Ail]:[Tournesol]],\"-\")","v":""}]
["Pdt","+","-",null,null,"-","-","-","-","+","-","-","-",null,"+",null,"+",null,"-","+",null,null,"-",null,null,"-",null,null,"+",null,"-",{"$nulls":3},"-","-",null,{"$f":"COUNTIF(T_assoc[[#This Row],[Ail]:[Tournesol]],$AL$1)","v":6},{"$f":"COUNTIF(T_assoc[[#This Row],[Ail]:[Tournesol]],$AM$1)","v":14},{"$f":"COUNTIF(T_assoc[[#This Row],[Ail]:[Tournesol]],\"\")","v":15},{"$f":"assoc($A30,T_assoc[[#Headers],[Ail]:[Tournesol]],\"+\")","v":""},{"$f":"assoc($A30,T_assoc[[#Headers],[Ail]:[Tournesol]],\"-\")","v":""}]
["Poivron",null,"+",{"$nulls":26},"-",{"$nulls":7},{"$f":"COUNTIF(T_assoc[[#This Row],[Ail]:[Tournesol]],$AL$1)","v":1},{"$f":"COUNTIF(T_assoc[[#This Row],[Ail]:[Tournesol]],$AM$1)","v":1},{"$f":"COUNTIF(T_assoc[[#This Row],[Ail]:[Tournesol]],\"\")","v":33},{"$f":"assoc($A31,T_assoc[[#Headers],[Ail]:[Tournesol]],\"+\")","v":""},{"$f":"assoc($A31,T_assoc[[#Headers],[Ail]:[Tournesol]],\"-\")","v":""}]
["Poireaux","-",{"$nulls":3},"-","-","+","+","-",{"$nulls":5},"+","-","+",null,"-","+",{"$nulls":4},"-",null,"-","-",{"$nulls":5},"-",null,null,{"$f":"COUNTIF(T_assoc[[#This Row],[Ail]:[Tournesol]],$AL$1)","v":5},{"$f":"COUNTIF(T_assoc[[#This Row],[Ail]:[Tournesol]],$AM$1)","v":10},{"$f":"COUNTIF(T_assoc[[#This Row],[Ail]:[Tournesol]],\"\")","v":20},{"$f":"assoc($A32,T_assoc[[#Headers],[Ail]:[Tournesol]],\"+\")","v":""},{"$f":"assoc($A32,T_assoc[[#Headers],[Ail]:[Tournesol]],\"-\")","v":""}]
["Radis",{"$nulls":4},"+","+","+","+","-","-","-","-","+",null,"+","+",null,null,"+","+",{"$nulls":6},"+","+",{"$nulls":5},"+",null,null,{"$f":"COUNTIF(T_assoc[[#This Row],[Ail]:[Tournesol]],$AL$1)","v":12},{"$f":"COUNTIF(T_assoc[[#This Row],[Ail]:[Tournesol]],$AM$1)","v":4},{"$f":"COUNTIF(T_assoc[[#This Row],[Ail]:[Tournesol]],\"\")","v":19},{"$f":"assoc($A33,T_assoc[[#Headers],[Ail]:[Tournesol]],\"+\")","v":""},{"$f":"assoc($A33,T_assoc[[#Headers],[Ail]:[Tournesol]],\"-\")","v":""}]
["Souci",{"$nulls":8},"-",{"$nulls":24},"+",null,null,{"$f":"COUNTIF(T_assoc[[#This Row],[Ail]:[Tournesol]],$AL$1)","v":1},{"$f":"COUNTIF(T_assoc[[#This Row],[Ail]:[Tournesol]],$AM$1)","v":1},{"$f":"COUNTIF(T_assoc[[#This Row],[Ail]:[Tournesol]],\"\")","v":33},{"$f":"assoc($A34,T_assoc[[#Headers],[Ail]:[Tournesol]],\"+\")","v":""},{"$f":"assoc($A34,T_assoc[[#Headers],[Ail]:[Tournesol]],\"-\")","v":""}]
["Tomates","+",null,null,"+","-","-","+",null,"-","-","-","-",null,"+","+",{"$nulls":3},"-",{"$nulls":4},"+","+",null,"+","-","-",null,"-","+","+",{"$nulls":3},{"$f":"COUNTIF(T_assoc[[#This Row],[Ail]:[Tournesol]],$AL$1)","v":10},{"$f":"COUNTIF(T_assoc[[#This Row],[Ail]:[Tournesol]],$AM$1)","v":10},{"$f":"COUNTIF(T_assoc[[#This Row],[Ail]:[Tournesol]],\"\")","v":15},{"$f":"assoc($A35,T_assoc[[#Headers],[Ail]:[Tournesol]],\"+\")","v":""},{"$f":"assoc($A35,T_assoc[[#Headers],[Ail]:[Tournesol]],\"-\")","v":""}]
["Tournesol",{"$nulls":9},"+",{"$nulls":9},"-",{"$nulls":8},"-",{"$nulls":7},{"$f":"COUNTIF(T_assoc[[#This Row],[Ail]:[Tournesol]],$AL$1)","v":1},{"$f":"COUNTIF(T_assoc[[#This Row],[Ail]:[Tournesol]],$AM$1)","v":2},{"$f":"COUNTIF(T_assoc[[#This Row],[Ail]:[Tournesol]],\"\")","v":32},{"$f":"assoc($A36,T_assoc[[#Headers],[Ail]:[Tournesol]],\"+\")","v":""},{"$f":"assoc($A36,T_assoc[[#Headers],[Ail]:[Tournesol]],\"-\")","v":""}]

{"sheet":"Assocs","index":1,"n_rows":35,"n_cols":4,"rows_kept":35}
["Associations bénéfiques","Nb","Associations compatibles","Nb"]
[" Tomates Ail Basilic Carottes Echalottes Epinards Œillet D'Inde Oignon Persil Radis Souci ",11," Tomates Aubergine Artichaut Basilic Carottes Cresson Epinards Fraisier Framboisier Mâche Melon Œillet D'Inde Pêcher Poivron Radis Souci ",16]
[" Haricots Epinards Feves Mâche Navet ",5," Oignon Ail Aubergine Artichaut Basilic Cresson Echalottes Epinards Fraisier Framboisier Mâche Œillet D'Inde Pêcher Poivron Souci ",15]
[" Oignon Echalottes Fraisier Laitue Mâche ",5," Concombres Aubergine Artichaut Basilic Cornichons Courges Cresson Epinards Framboisier Mâche Œillet D'Inde Pêcher Poivron ",13]
[" Aubergine Haricots Œillet D'Inde Poivron ",4," Cornichons Aubergine Artichaut Basilic Concombres Courges Cresson Epinards Framboisier Mâche Œillet D'Inde Pêcher Poivron ",13]
[" Epinards Laitue Melon Navet ",4," Courges Aubergine Artichaut Basilic Concombres Cornichons Cresson Epinards Framboisier Mâche Œillet D'Inde Pêcher Poivron ",13]
[" Feves Artichaut Epinards Haricots ",4," Betteraves Aubergine Artichaut Basilic Bette Cresson Epinards Framboisier Mâche Œillet D'Inde Pêcher Poivron ",12]
[" Fraisier Epinards Laitue Mâche ",4," Celeri Aubergine Artichaut Basilic Cresson Epinards Framboisier Mâche Œillet D'Inde Pêcher Poivron Tournesol ",12]
[" Poireaux Carottes Epinards Fraisier ",4," Poireaux Artichaut Basilic Cresson Echalottes Epinards Fraisier Mâche Navet Œillet D'Inde Pêcher Souci ",12]
[" Ail Laitue Pêcher ",3," Bette Aubergine Artichaut Basilic Cresson Epinards Framboisier Mâche Œillet D'Inde Pêcher Poivron ",11]
[" Betteraves Ail Epinards ",3," Carottes Aubergine Artichaut Basilic Cresson Epinards Framboisier Mâche Œillet D'Inde Pêcher Poivron ",11]
[" Choux Epinards Mâche ",3," Melon Aubergine Artichaut Basilic Cresson Epinards Framboisier Mâche Œillet D'Inde Pêcher Poivron ",11]
[" Courges Feves Haricots ",3," Aubergine Artichaut Basilic Cresson Epinards Framboisier Mâche Œillet D'Inde Pêcher Poivron ",10]
[" Echalottes Fraisier Laitue ",3," Echalottes Artichaut Basilic Cresson Epinards Fraisier Mâche Œillet D'Inde Pêcher Souci ",10]
[" Laitue Epinards Mâche ",3," Framboisier Aubergine Artichaut Basilic Cresson Epinards Mâche Œillet D'Inde Pêcher Poivron ",10]
[" Melon Epinards Laitue ",3," Haricots Artichaut Basilic Cresson Epinards Feves Mâche Navet Œillet D'Inde Pêcher ",10]
[" Navet Epinards Laitue ",3," Poivron Aubergine Artichaut Basilic Cresson Epinards Framboisier Mâche Œillet D'Inde Pêcher ",10]
[" Œillet D'Inde Aubergine Tomates ",3," Radis Artichaut Basilic Cresson Epinards Fraisier Mâche Œillet D'Inde Pêcher Souci ",10]
[" Persil Radis Tomates ",3," Choux Artichaut Basilic Cresson Epinards Mâche Navet Œillet D'Inde Pêcher ",9]
[" Radis Cresson Epinards ",3," Feves Artichaut Basilic Cresson Epinards Mâche Navet Œillet D'Inde Pêcher ",9]
[null,null," Fraisier Artichaut Basilic Cresson Epinards Mâche Œillet D'Inde Pêcher Souci ",9]
[null,null," Pois Artichaut Basilic Cresson Epinards Mâche Navet Œillet D'Inde Pêcher ",9]
[null,null," Pdt Artichaut Basilic Cresson Epinards Mâche Navet Œillet D'Inde Pêcher ",9]
[null,null," Souci Artichaut Basilic Cresson Epinards Fraisier Mâche Œillet D'Inde Pêcher ",9]
[null,null," Ail Artichaut Basilic Cresson Epinards Mâche Œillet D'Inde Pêcher ",8]
[null,null," Laitue Artichaut Basilic Cresson Epinards Mâche Œillet D'Inde Pêcher ",8]
[null,null," Navet Artichaut Basilic Cresson Epinards Mâche Œillet D'Inde Pêcher ",8]
[null,null," Persil Artichaut Basilic Cresson Epinards Mâche Œillet D'Inde Pêcher ",8]
[null,null," Artichaut Basilic Cresson Epinards Mâche Œillet D'Inde Pêcher ",7]
[null,null," Basilic Artichaut Cresson Epinards Mâche Œillet D'Inde Pêcher ",7]
[null,null," Cresson Artichaut Basilic Epinards Mâche Œillet D'Inde Pêcher ",7]
[null,null," Epinards Artichaut Basilic Cresson Mâche Œillet D'Inde Pêcher ",7]
[null,null," Mâche Artichaut Basilic Cresson Epinards Œillet D'Inde Pêcher ",7]
[null,null," Œillet D'Inde Artichaut Basilic Cresson Epinards Mâche Pêcher ",7]
[null,null," Pêcher Artichaut Basilic Cresson Epinards Mâche Œillet D'Inde ",7]